fUSD/lending_fUSD_20250618
["ID","MTS","AMOUNT","RATE_DAILY","PERIOD"]
[366447612,1750259439080,-184.22993323,0.0001939,2]
[366447615,1750259439091,-150.36,0.0001939,2]
[366447617,1750259439101,-150.36,0.0001939,2]
[366447619,1750259439110,-150.36,0.0001939,2]
[366447621,1750259439120,-150.36,0.0001939,2]
[366447623,1750259439130,-150.36,0.0001939,2]
[366447624,1750259439142,-150.36,0.0001939,2]
[366447626,1750259439151,-150.36,0.0001939,2]
[366447628,1750259439160,-150.36,0.0001939,2]
[366447630,1750259439170,-150.36,0.0001939,2]
[366447633,1750259439181,-150.36,0.0001939,2]
[366447635,1750259439190,-2000.0,0.00019399,2]
[366447636,1750259439200,-500.0,0.00019399,2]
[366447639,1750259439210,-500.0,0.00019399,2]
[366447641,1750259439221,-568.65518398,0.00019399,2]
[366447643,1750259439231,-182.04998015,0.00019399,2]
[366447645,1750259439241,-353.49748754,0.00019399,2]
[366447647,1750259439251,-188.37181534,0.00019399,2]
[366447649,1750259439262,-500.0,0.00019399,2]
[366447651,1750259439271,-500.0,0.00019399,2]
[366447653,1750259439282,-500.0,0.00019399,2]
[366447655,1750259439292,-500.0,0.00019399,2]
[366447657,1750259439301,-500.0,0.00019399,2]
[366447659,1750259439311,-500.0,0.00019399,2]
[366447661,1750259439320,-500.0,0.00019399,2]
[366447663,1750259439330,-384.46340155,0.00019399,2]
[366447665,1750259439340,-500.0,0.00019399,2]
[366447667,1750259439349,-500.0,0.00019399,2]
[366447669,1750259439358,-500.0,0.00019399,2]
[366447671,1750259439368,-500.0,0.00019399,2]
[366447673,1750259439377,-500.0,0.00019399,2]
[366447675,1750259439387,-293.91976399,0.00019399,2]
[366447677,1750259439397,-500.0,0.00019399,2]
[366447679,1750259439407,-500.0,0.00019399,2]
[366447681,1750259439416,-500.0,0.00019399,2]
[366447683,1750259439427,-151.7930257,0.00019399,2]
[366447685,1750259439437,-500.0,0.00019399,2]
[366447687,1750259439446,-500.0,0.00019399,2]
[366447689,1750259439456,-500.0,0.00019399,2]
[366447691,1750259439465,-199.92987486,0.00019399,2]
[366447693,1750259439475,-500.0,0.00019399,2]
[366447695,1750259439485,-500.0,0.00019399,2]
[366447698,1750259439495,-500.0,0.00019399,2]
[366447700,1750259439504,-500.0,0.00019399,2]
[366447702,1750259439514,-500.0,0.00019399,2]
[366447703,1750259439523,-500.0,0.00019399,2]
[366447706,1750259439533,-500.0,0.00019399,2]
[366447708,1750259439543,-1573.7757277,0.00019399,2]
[366447710,1750259439552,-165.78,0.00019399,2]
[366447712,1750259439563,-94660.41761559,0.000194,2]
[366447714,1750259439573,-10916.60522248,0.000194,2]
[366447717,1750259439593,-2689.65208446,0.000194,2]
[366447779,1750259440190,-252.945,0.00019281,2]
[366447795,1750259440361,-580.97580167,0.00019281,2]
[366447796,1750259440372,-531.33239643,0.000194,2]
[366447797,1750259440385,-35745.94775053,0.000194,2]
[366447798,1750259440397,-1451.17611136,0.000194,2]
[366447799,1750259440413,-538.4114684,0.000194,2]
[366447800,1750259440424,-947.72946,0.000194,2]
[366448060,1750259443120,-151.0,0.00015513,2]
[366448061,1750259443130,-204.0,0.00017082,2]
[366448062,1750259443143,-2445.3565772,0.000194,2]
[366448076,1750259446036,-265.63,0.000193,2]
[366448077,1750259446050,-1496.49519827,0.000193,2]
[366448080,1750259448953,-24323.48230173,0.000193,2]
[366448081,1750259448963,-99862.17376053,0.000194,2]
[366448082,1750259448975,-544.5,0.000194,2]
[366448083,1750259449022,-3150.0,0.000194,2]
[366448084,1750259449038,-1802.93664161,0.000194,2]
[366448085,1750259449108,-2653.68999998,0.000194,2]
[366448086,1750259449121,-313.68898,0.000194,2]
[366448087,1750259458039,-0.63,0.000233,31]
[366448088,1750259458067,-500.0,0.000241,30]
[366448089,1750259458090,-500.0,0.000241,30]
[366448090,1750259458113,-500.0,0.000241,30]
[366448091,1750259458136,-500.0,0.000241,30]
[366448092,1750259458162,-500.0,0.000241,30]
[366448093,1750259458187,-500.0,0.000241,30]
[366448094,1750259458210,-500.0,0.000241,30]
[366448095,1750259458234,-500.0,0.000241,30]
[366448096,1750259458257,-500.0,0.000241,30]
[366448097,1750259458281,-500.0,0.000241,30]
[366448098,1750259458305,-500.0,0.000241,30]
[366448099,1750259458330,-500.0,0.000241,30]
[366448100,1750259458353,-500.0,0.000241,30]
[366448101,1750259458375,-500.0,0.000241,30]
[366448102,1750259458397,-511.54308831,0.000241,30]
[366448103,1750259458419,-500.0,0.000241,30]
[366448104,1750259458442,-500.0,0.000241,30]
[366448105,1750259458464,-500.0,0.000241,30]
[366448106,1750259458486,-500.0,0.000241,30]
[366448107,1750259458509,-500.0,0.000241,30]
[366448108,1750259458532,-650.88966461,0.000241,30]
[366448109,1750259458555,-1100.0,0.000241,30]
[366448110,1750259458578,-1100.0,0.000241,30]
[366448111,1750259458600,-1100.0,0.000241,30]
[366448112,1750259458623,-1100.0,0.000241,30]
[366448113,1750259458646,-500.0,0.000241,30]
[366448114,1750259458669,-700.0,0.000241,30]
[366448115,1750259458691,-1100.0,0.000241,30]
[366448116,1750259458716,-500.0,0.000241,30]
[366448117,1750259458739,-500.0,0.000241,30]
[366448118,1750259458763,-700.0,0.000241,30]
[366448119,1750259458786,-1100.0,0.000241,30]
[366448120,1750259458808,-500.0,0.000241,30]
[366448121,1750259458831,-700.0,0.000241,30]
[366448122,1750259458855,-500.0,0.000241,30]
[366448123,1750259458878,-1100.0,0.000241,30]
[366448124,1750259458899,-500.0,0.000241,30]
[366448125,1750259458922,-700.0,0.000241,30]
[366448126,1750259458943,-500.0,0.000241,30]
[366448127,1750259458965,-1100.0,0.000241,30]
[366448128,1750259458988,-700.0,0.000241,30]
[366448129,1750259459013,-500.0,0.000241,30]
[366448130,1750259459036,-1100.0,0.000241,30]
[366448131,1750259459060,-500.0,0.000241,30]
[366448132,1750259459082,-700.0,0.000241,30]
[366448133,1750259459105,-1100.0,0.000241,30]
[366448134,1750259459127,-500.0,0.000241,30]
[366448135,1750259459153,-500.0,0.000241,30]
[366448136,1750259459176,-700.0,0.000241,30]
[366448137,1750259459200,-1100.0,0.000241,30]
[366448138,1750259459222,-500.0,0.000241,30]
[366448139,1750259459246,-700.0,0.000241,30]
[366448140,1750259459269,-1100.0,0.000241,30]
[366448141,1750259459292,-500.0,0.000241,30]
[366448142,1750259459315,-700.0,0.000241,30]
[366448143,1750259459336,-1100.0,0.000241,30]
[366448144,1750259459359,-700.0,0.000241,30]
[366448145,1750259459380,-1300.0,0.000241,30]
[366448146,1750259459402,-700.0,0.000241,30]
[366448147,1750259459425,-700.0,0.000241,30]
[366448148,1750259459447,-1300.0,0.000241,30]
[366448149,1750259459470,-500.0,0.000241,30]
[366448150,1750259459492,-500.0,0.000241,30]
[366448151,1750259459514,-503.35081398,0.000241,30]
[366448152,1750259459541,-500.0,0.000241,30]
[366448153,1750259459567,-500.0,0.000241,30]
[366448154,1750259459592,-500.0,0.000241,30]
[366448155,1750259459618,-500.0,0.000241,30]
[366448156,1750259459642,-500.0,0.000241,30]
[366448157,1750259459667,-500.0,0.000241,30]
[366448158,1750259459696,-2625.9,0.00024685,30]
[366448159,1750259459720,-1576.6864331,0.00024739,60]
[366448160,1750259492415,-423.3135669,0.00024739,60]
[366448161,1750259492441,-400.0,0.00024794,120]
[366448162,1750259492470,-190.71,0.00024907,120]
[366448163,1750259492495,-400.0,0.00024931,120]
[366448164,1750259492521,-2656.9764331,0.00025,15]
[366448165,1750259544244,-743.36999498,0.00025,30]
[366448166,1750259544273,-833.63000502,0.00025,30]
[366448167,1750259582058,-400.0,0.00025068,120]
[366448168,1750259582083,-400.0,0.00025205,120]
[366448169,1750259582108,-400.0,0.00025342,120]
[366448170,1750259582131,-400.0,0.00025479,120]
[366448171,1750259582155,-400.0,0.00025616,120]
[366448172,1750259582180,-421.0,0.00025753,120]
[366448174,1750259621427,-0.31717739,0.00025753,120]
[366448175,1750259621451,-500.0,0.00025875,120]
[366448176,1750259621475,-1333.0,0.00026137,120]
[366448177,1750259621500,-800.0,0.00026986,120]
[366448178,1750259621523,-800.0,0.00026986,120]
[366448179,1750259621546,-700.68282261,0.00027,120]
[366448181,1750259665257,500.0,0.00026,120]
[366448182,1750259676264,-0.7812079,0.00027,120]
[366448183,1750259689288,500.0,0.00027,120]
[366448184,1750259699243,590.0,0.00027,120]
[366448185,1750259702824,-2000.0,0.00025789,60]
[366448189,1750259726747,-1800.0,0.0002,21]
[366448190,1750259736135,-1800.0,0.00021,22]
[366448191,1750259760042,-1800.0,0.00022,23]
[366448192,1750259768793,-1800.0,0.00023,24]
[366448193,1750259779345,-1800.0,0.00024,25]
[366448194,1750259811680,-2297.66,0.00024685,30]
[366448195,1750259811712,-0.29079665,0.00025,30]
[366448196,1750259848359,0.04920335,0.000249,31]
[366448197,1750259852213,-152.36079665,0.000249,31]
[366448198,1750259852242,-152.41,0.000249,31]
[366448199,1750259852277,-152.41,0.000249,31]
[366448200,1750259852304,-1342.81920335,0.00025,26]
[366448201,1750259863003,-1800.0,0.00026,27]
[366448203,1750259903880,-174.31,0.00026,30]
[366448204,1750259903906,-1625.69,0.00027,28]
[366448205,1750259930271,-155.0,0.00024,10]
[366448206,1750259930299,-2144.58391484,0.00024,10]
[366448209,1750259985842,204.86,0.00013699,2]
[366448210,1750259996273,-10909.66781648,0.000216,7]
[366448211,1750259996301,-200.0,0.00021779,7]
[366448212,1750259996325,-342.33218352,0.00021918,7]
[366448213,1750260003221,0.41608516,0.0002,21]
[366448214,1750260010262,-1799.58391484,0.0002,21]
[366448215,1750260010295,-0.04543952,0.00021918,7]
[366448216,1750260010324,-895.49542911,0.00022,23]
[366448219,1750260030689,1333.0,0.00026137,120]
[366448220,1750260083498,-918.0,0.00022192,7]
[366448221,1750260083522,-375656.51,0.000224,7]
[366448222,1750260083545,-151.0,0.000224,7]
[366448223,1750260083567,-151.0,0.000224,7]
[366448224,1750260083591,-223.29313,0.000224,7]
[366448225,1750260083615,-223.29313,0.000224,7]
[366448226,1750260083638,-151.0,0.000224,7]
[366448227,1750260083662,-151.0,0.000224,7]
[366448228,1750260083684,-151.0,0.000224,7]
[366448229,1750260083708,-151.0,0.000224,7]
[366448230,1750260083733,-151.0,0.000224,7]
[366448231,1750260083756,-151.0,0.000224,7]
[366448232,1750260083780,-151.0,0.000224,7]
[366448233,1750260083804,-151.0,0.000224,7]
[366448234,1750260083829,-160.932382,0.000224,7]
[366448235,1750260083853,-151.294316,0.000224,7]
[366448236,1750260083877,-151.0,0.000224,7]
[366448237,1750260083900,-151.0,0.000224,7]
[366448238,1750260083925,-151.0,0.000224,7]
[366448239,1750260083949,-160.141034,0.000224,7]
[366448240,1750260083974,-160.141034,0.000224,7]
[366448241,1750260083999,-151.0,0.000224,7]
[366448242,1750260084021,-151.0,0.000224,7]
[366448243,1750260084043,-151.0,0.000224,7]
[366448244,1750260084065,-151.0,0.000224,7]
[366448245,1750260084090,-151.0,0.000224,7]
[366448246,1750260084112,-151.0,0.000224,7]
[366448247,1750260084136,-151.0,0.000224,7]
[366448248,1750260084160,-852.383053,0.000224,7]
[366448249,1750260084183,-852.383053,0.000224,7]
[366448250,1750260084205,-151.0,0.000224,7]
[366448251,1750260084229,-151.0,0.000224,7]
[366448252,1750260084251,-833.92080167,0.000224,7]
[366448253,1750260084276,-151.0,0.000224,7]
[366448254,1750260084299,-167.930415,0.000224,7]
[366448255,1750260084323,-167.930415,0.000224,7]
[366448256,1750260084350,-918.0,0.00022466,7]
[366448257,1750260084386,-635.35254339,0.00022486,7]
[366448258,1750260084412,-918.0,0.0002274,7]
[366448259,1750260084436,-164.80001748,0.00023,7]
[366448260,1750260084459,-521.69467546,0.00023,7]
[366448263,1750260155135,299.99,0.00020145,7]
[366448264,1750260162393,200.0,0.00020875,7]
[366448309,1750260207365,500.0,0.00025933,120]
[366448326,1750260239117,-310.44586437,0.00027185,120]
[366448327,1750260239139,-169.63043692,0.0002739,120]
[366448328,1750260239164,-500.0,0.00027545,120]
[366448329,1750260239187,-1073.63551528,0.00028,120]
[366448341,1750260284844,-2000.0,0.00025945,60]
[366448343,1750260346624,0.28818343,0.00028,120]
[366448344,1750260349603,215.873522,0.0002192,7]
[366448345,1750260353954,-434.712,0.0002422,15]
[366448346,1750260353980,-900.0,0.00024658,14]
[366448347,1750260354011,-980.13392553,0.00025,15]
[366448348,1750260354035,-1085.15407447,0.00025,14]
[366448349,1750260356547,457.0,0.00025,30]
[366448350,1750260361119,151.0,0.0002192,7]
[366448353,1750260393366,163.964163,0.0002192,7]
[366448354,1750260397054,163.964163,0.0002192,7]
[366448356,1750260407378,264.497312,0.0002192,7]
[366448357,1750260412428,-200.0,0.00022273,9]
[366448358,1750260412455,-235.009719,0.000224,7]
[366448359,1750260412482,-235.009719,0.000224,7]
[366448360,1750260412506,-151.0,0.000224,7]
[366448361,1750260412532,-151.0,0.000224,7]
[366448362,1750260412556,-151.0,0.000224,7]
[366448363,1750260412580,-151.0,0.000224,7]
[366448364,1750260412604,-151.0,0.000224,7]
[366448365,1750260412627,-88574.980562,0.000224,7]
[366448409,1750260492646,200.0,0.00020115,7]
[366448410,1750260492898,200.0,0.00021592,9]
[366448448,1750260632143,-747.24893941,0.00014389,2]
[366448449,1750260632259,-336.66692717,0.00014389,2]
[366448450,1750260632272,-116.08413342,0.00014389,2]
[366448451,1750260632281,-2076.72336021,0.0001439,2]
[366448452,1750260632350,-3279.09610278,0.0001439,2]
[366448467,1750260632749,-4468.01069315,0.0001439,2]
[366448469,1750260632759,-150.51965284,0.00014898,2]
[366448471,1750260632768,-284.0,0.00014998,2]
[366448473,1750260632778,-6909.03839118,0.00015,2]
[366448475,1750260632788,-14296.76422508,0.00015,2]
[366448477,1750260632798,-843.28794607,0.000154,2]
[366448479,1750260632807,-151.0,0.00015642,2]
[366448481,1750260632817,-151.0,0.00015648,2]
[366448483,1750260632826,-151.0,0.00015659,2]
[366448485,1750260632835,-200.0,0.00015684,2]
[366448487,1750260632845,-219.19,0.00015761,2]
[366448489,1750260632855,-300.0,0.0001587,2]
[366448491,1750260632865,-300.0,0.00015899,2]
[366448493,1750260632874,-614.17412553,0.000159,2]
[366448495,1750260632883,-12928.48375025,0.00015989,2]
[366448497,1750260632893,-28874.45800413,0.00016,2]
[366448499,1750260632902,-497.32,0.0001601,2]
[366448501,1750260632912,-300.0,0.00016047,2]
[366448503,1750260632921,-499.04,0.00016049,2]
[366448505,1750260632931,-300.55,0.00016049,2]
[366448507,1750260632941,-507.17,0.00016049,2]
[366448509,1750260632950,-497.7,0.00016137,2]
[366448511,1750260632960,-490.83,0.00016137,2]
[366448513,1750260632969,-493.88,0.00016137,2]
[366448515,1750260632979,-2336.31524918,0.00016218,2]
[366448517,1750260632989,-547.98701072,0.00016218,2]
[366448519,1750260632998,-1000.0,0.00016241,2]
[366448521,1750260633008,-96168.64552787,0.00016247,2]
[366448556,1750260633440,-975.92962597,0.00016247,2]
[366448575,1750260633632,-3117.129395,0.00016247,2]
[366449009,1750260638295,-34574.49178753,0.00016247,2]
[366449211,1750260640400,-481.10881548,0.00016247,2]
[366449213,1750260640412,-390.26789495,0.00016247,2]
[366449215,1750260640424,-2263.95982272,0.00016247,2]
[366449239,1750260640655,-42505.31841806,0.00016247,2]
[366449241,1750260640665,-1500.0,0.00016317,2]
[366449243,1750260640675,-11722.5450481,0.00016438,2]
[366449245,1750260640685,-302.99,0.00016468,2]
[366449247,1750260640695,-614.17412527,0.00016624,2]
[366449249,1750260640705,-187.0,0.00016712,2]
[366449251,1750260640715,-1957.856,0.0001687,2]
[366449253,1750260640725,-207.4,0.0001687,2]
[366449255,1750260640735,-1468.44555436,0.00016925,2]
[366449258,1750260640745,-2336.31524913,0.00016983,2]
[366449259,1750260640754,-2959.0,0.00017042,2]
[366449261,1750260640764,-200.0,0.00017161,3]
[366449264,1750260640775,-3333.28,0.00017252,2]
[366449266,1750260640785,-600.0,0.00017335,4]
[366449268,1750260640796,-614.17412527,0.00017348,2]
[366449270,1750260640806,-833.92080167,0.00017372,2]
[366449272,1750260640816,-300.0,0.00017413,2]
[366449274,1750260640825,-15164.27,0.00017414,2]
[366449276,1750260640835,-666.0,0.00017512,2]
[366449278,1750260640845,-150.0,0.00017532,2]
[366449280,1750260640855,-151.0,0.00017559,2]
[366449282,1750260640864,-195.94117744,0.00017559,2]
[366449284,1750260640874,-151.0,0.00017559,2]
[366449286,1750260640883,-151.0,0.00017559,2]
[366449288,1750260640893,-198.0,0.00017559,2]
[366449290,1750260640904,-23900.0,0.00017569,2]
[366449292,1750260640914,-219.19,0.00017731,2]
[366449294,1750260640924,-2336.31524913,0.00017747,2]
[366449296,1750260640933,-4144.81692073,0.00017815,2]
[366449298,1750260640943,-19571.04,0.00017817,2]
[366449300,1750260640953,-2709.90861174,0.00017864,2]
[366449302,1750260640963,-627.06,0.00018,2]
[366449304,1750260640972,-200.0,0.00018,2]
[366449306,1750260640983,-1000.0,0.00018001,2]
[366449308,1750260640992,-1000.0,0.00018001,2]
[366449310,1750260641002,-1000.0,0.00018001,2]
[366449312,1750260641011,-1000.0,0.00018001,2]
[366449314,1750260641021,-628.45879404,0.00018001,2]
[366449316,1750260641030,-614.17412527,0.00018072,2]
[366449318,1750260641040,-166.37,0.000181,2]
[366449320,1750260641050,-215.0738,0.00018239,2]
[366449322,1750260641059,-1000.0,0.00018271,2]
[366449324,1750260641068,-5653.18,0.00018282,2]
[366449326,1750260641078,-2709.90861169,0.00018357,2]
[366449328,1750260641088,-500.0,0.00018373,2]
[366449330,1750260641097,-2336.31524913,0.00018512,2]
[366449332,1750260641107,-168.0,0.00018539,2]
[366449334,1750260641116,-200.0,0.00018638,5]
[366449336,1750260641126,-614.17412527,0.00018797,2]
[366449338,1750260641137,-2709.90861169,0.0001885,2]
[366449340,1750260641146,-156.587,0.00018928,2]
[366449342,1750260641156,-753.058549,0.00019012,2]
[366449344,1750260641167,-200.0,0.00019014,2]
[366449346,1750260641176,-474.4065,0.00019078,2]
[366449348,1750260641186,-1000.0,0.000191,2]
[366449350,1750260641195,-200.0,0.00019158,2]
[366449352,1750260641205,-200.0,0.00019169,2]
[366449354,1750260641214,-151.0,0.00019178,2]
[366449356,1750260641224,-652.88,0.00019178,2]
[366449358,1750260641233,-1000.0,0.000192,2]
[366449360,1750260641243,-200.0,0.00019209,2]
[366449362,1750260641252,-4666.66666,0.0001921,2]
[366449364,1750260641262,-200.0,0.00019212,2]
[366449366,1750260641272,-2336.31524913,0.00019277,2]
[366449368,1750260641282,-200.0,0.00019289,2]
[366449370,1750260641291,-200.0,0.000193,2]
[366449372,1750260641301,-183.28319022,0.000193,2]
[366449374,1750260641311,-4666.66667,0.0001931,2]
[366449376,1750260641320,-2709.90861169,0.00019343,2]
[366449378,1750260641329,-500.0,0.00019373,2]
[366449380,1750260641339,-500.0,0.00019373,2]
[366449382,1750260641348,-173.89210119,0.00019389,2]
[366449384,1750260641358,-150.36,0.0001939,2]
[366449386,1750260641368,-150.36,0.0001939,2]
[366449388,1750260641377,-150.36,0.0001939,2]
[366449390,1750260641387,-150.36,0.0001939,2]
[366449392,1750260641397,-150.36,0.0001939,2]
[366449394,1750260641408,-150.36,0.0001939,2]
[366449396,1750260641417,-150.36,0.0001939,2]
[366449398,1750260641427,-150.36,0.0001939,2]
[366449400,1750260641436,-150.36,0.0001939,2]
[366449402,1750260641446,-150.36,0.0001939,2]
[366449404,1750260641455,-150.36,0.0001939,2]
[366449406,1750260641465,-150.36,0.0001939,2]
[366449408,1750260641475,-150.36,0.0001939,2]
[366449410,1750260641484,-150.36,0.0001939,2]
[366449412,1750260641493,-500.0,0.00019399,2]
[366449414,1750260641503,-251.12817441,0.00019399,2]
[366449416,1750260641516,-307.82966717,0.00019399,2]
[366449418,1750260641526,-500.0,0.00019399,2]
[366449420,1750260641535,-598.05862878,0.00019399,2]
[366449422,1750260641546,-19819.05405616,0.000194,2]
[366449425,1750260641561,-2687.0,0.000194,2]
[366449667,1750260643874,-24824.15475164,0.000194,2]
[366449669,1750260643884,-2100.51501382,0.000194,2]
[366449677,1750260643947,-460.889345,0.000194,2]
[366449723,1750260644364,-1072.03120659,0.000194,2]
[366449725,1750260644376,-1558.655,0.000194,2]
[366449916,1750260646361,-3230.23698,0.000194,2]
[366449922,1750260646411,-869.56000002,0.000194,2]
[366452036,1750260781467,1500.0,0.0002,7]
[366452037,1750260781823,1500.0,0.0002,7]
[366452038,1750260782565,1313.513047,0.0002,7]
[366452039,1750260788205,1191.59518317,0.00022,7]
[366452040,1750260816645,710.2187921,0.00026137,120]
[366452049,1750261165264,151.0,0.000194,7]
[366452050,1750261165547,151.0,0.000194,7]
[366452051,1750261185328,500.0,0.0002465,120]
[366452052,1750261213195,-500.0,0.000241,30]
[366452053,1750261213220,-500.0,0.000241,30]
[366452054,1750261213244,-500.0,0.000241,30]
[366452055,1750261213269,-500.0,0.000241,30]
[366452056,1750261213294,-500.0,0.000241,30]
[366452057,1750261213317,-500.0,0.000241,30]
[366452058,1750261213341,-500.0,0.000241,30]
[366452059,1750261213366,-500.0,0.000241,30]
[366452060,1750261213390,-500.0,0.000241,30]
[366452061,1750261213414,-500.0,0.000241,30]
[366452062,1750261213438,-500.0,0.000241,30]
[366452063,1750261213462,-500.0,0.000241,30]
[366452064,1750261213486,-600.0,0.000241,30]
[366452065,1750261213511,-600.0,0.000241,30]
[366452066,1750261213536,-600.0,0.000241,30]
[366452067,1750261213561,-600.0,0.000241,30]
[366452068,1750261213587,-600.0,0.000241,30]
[366452069,1750261213616,-600.0,0.000241,30]
[366452070,1750261213640,-600.0,0.000241,30]
[366452071,1750261213667,-600.0,0.000241,30]
[366452072,1750261213693,-600.0,0.000241,30]
[366452073,1750261213721,-600.0,0.000241,30]
[366452074,1750261213761,-500.0,0.000241,30]
[366452075,1750261213811,-600.0,0.000241,30]
[366452076,1750261213858,-500.0,0.000241,30]
[366452077,1750261213890,-1000.0,0.000241,30]
[366452078,1750261213954,-500.0,0.000241,30]
[366452079,1750261213999,-500.0,0.000241,30]
[366452080,1750261214033,-500.0,0.000241,30]
[366452081,1750261214088,-500.0,0.000241,30]
[366452082,1750261214115,-500.0,0.000241,30]
[366452083,1750261214140,-500.0,0.000241,30]
[366452084,1750261214164,-500.0,0.000241,30]
[366452085,1750261214186,-500.0,0.000241,30]
[366452086,1750261214208,-500.0,0.000241,30]
[366452087,1750261214231,-500.0,0.000241,30]
[366452088,1750261214254,-500.0,0.000241,30]
[366452089,1750261214277,-500.0,0.000241,30]
[366452090,1750261214302,-500.0,0.000241,30]
[366452091,1750261214325,-796.64918602,0.000241,30]
[366452092,1750261214354,-2109.82,0.00024685,30]
[366452093,1750261214386,-152.44,0.000249,31]
[366452094,1750261214419,-152.44,0.000249,31]
[366452095,1750261214451,-152.44,0.000249,31]
[366452096,1750261214481,-152.44,0.000249,31]
[366452097,1750261214511,-152.44,0.000249,31]
[366452098,1750261214544,-152.44,0.000249,31]
[366452099,1750261214575,-152.44,0.000249,31]
[366452100,1750261214600,-809.45523474,0.00025,30]
[366452101,1750261214628,-2000.0,0.0002607,60]
[366452102,1750261214653,-622.7812079,0.00026137,120]
[366452103,1750261214690,-310.00000279,0.00027185,30]
[366452104,1750261214722,-500.0,0.00027658,30]
[366452105,1750261214749,-500.0,0.00027658,30]
[366452106,1750261214773,-500.0,0.00027658,30]
[366452107,1750261214800,-500.0,0.00027658,30]
[366452108,1750261214825,-501.37878969,0.00027658,30]
[366452109,1750261214849,-500.0,0.00027658,30]
[366452110,1750261214874,-500.0,0.00027658,30]
[366452111,1750261214897,-500.0,0.00027658,30]
[366452112,1750261214921,-500.0,0.00027658,30]
[366452113,1750261214944,-500.0,0.00027658,30]
[366452114,1750261214967,-500.0,0.00027658,30]
[366452115,1750261214990,-365.1737934,0.00027658,30]
[366452116,1750261215015,-164.73666784,0.00027658,30]
[366452117,1750261215041,-500.0,0.00027658,30]
[366452118,1750261215066,-500.0,0.00027658,30]
[366452119,1750261215090,-500.0,0.00027658,30]
[366452120,1750261215113,-500.0,0.00027658,30]
[366452121,1750261215135,-500.0,0.00027658,30]
[366452122,1750261215157,-550.34590983,0.00027658,30]
[366452123,1750261215180,-600.0,0.00027658,30]
[366452124,1750261215204,-600.0,0.00027658,30]
[366452125,1750261215228,-600.0,0.00027658,30]
[366452126,1750261215252,-600.0,0.00027658,30]
[366452127,1750261215276,-500.0,0.00027658,30]
[366452128,1750261215301,-600.0,0.00027658,30]
[366452129,1750261215324,-500.0,0.00027658,30]
[366452130,1750261215347,-600.0,0.00027658,30]
[366452131,1750261215370,-500.0,0.00027658,30]
[366452132,1750261215393,-600.0,0.00027658,30]
[366452133,1750261215417,-500.0,0.00027658,30]
[366452134,1750261215440,-307.11237013,0.00027658,30]
[366452135,1750261215462,-600.0,0.00027658,30]
[366452136,1750261215484,-161.10423483,0.00027658,30]
[366452137,1750261215506,-481.18343404,0.00027658,30]
[366452138,1750261215529,-500.0,0.00027658,30]
[366452139,1750261215553,-600.0,0.00027658,30]